fUST/lending_fUST_20250925
["ID","MTS","AMOUNT","RATE_DAILY","PERIOD"]
[387599506,1758781843531,-199.0,0.00028904,15]
[387599508,1758781843541,-762.36,0.00029041,8]
[387599510,1758781843550,-177.66392099,0.00029041,30]
[387599512,1758781843560,-450.0,0.00029041,5]
[387599514,1758781843569,-500.0,0.00029042,2]
[387599516,1758781843578,-150.0,0.000292,10]
[387599518,1758781843587,-453.78913429,0.00029215,22]
[387599520,1758781843596,-500.0,0.00029316,2]
[387599523,1758781843606,-2000.0,0.00029363,30]
[387599525,1758781843615,-1241.099999,0.00029363,30]
[387599526,1758781843624,-250.0,0.00029363,10]
[387599528,1758781843634,-250.0,0.00029363,10]
[387599530,1758781843643,-250.0,0.00029363,10]
[387599532,1758781843653,-92975.22790404,0.00029363,20]
[387599538,1758781843699,-503.01188397,0.00029363,20]
[387599540,1758781843711,-258.22,0.00029363,20]
[387599543,1758781843722,-302.38100002,0.00029363,20]
[387599545,1758781843734,-607.8502835,0.00029363,20]
[387599550,1758781843768,-480.0,0.00019333,2]
[387599552,1758781843778,-480.0,0.00019349,2]
[387599554,1758781843788,-497.04,0.00019623,2]
[387599555,1758781843797,-1386.76,0.00029363,20]
[387599558,1758781843809,-861.11546852,0.00029363,20]
[387599560,1758781843820,-37174.80822807,0.00029363,20]
[387599784,1758781846100,-151.0,0.00025206,2]
[387599786,1758781846110,-151.0,0.0002548,2]
[387599788,1758781846119,-141.80773861,0.00025754,2]
[387602071,1758781917642,279.9134545,0.00018624,2]
[387602230,1758782576540,172.25567174,0.00018767,2]
[387602232,1758782580755,730.3635941,0.00018347,2]
[387602234,1758782638478,254.5551301,0.00018347,2]
[387602313,1758782911315,-174.28778664,0.000193,2]
[387602314,1758782926517,-1706.29994351,0.00019323,2]
[387602315,1758782933499,150.0,0.00011678,30]
[387602316,1758782933923,150.0,0.0001274,30]
[387602317,1758782934616,151.6,0.00013801,30]
[387602318,1758782935045,202.13,0.00014863,30]
[387602319,1758782935540,252.67,0.00015924,30]
[387602320,1758782936401,303.2,0.00016986,30]
[387602321,1758782936853,353.73,0.00018048,30]
[387602322,1758782937295,404.27,0.00019109,30]
[387602323,1758782937740,454.8,0.00020171,30]
[387602324,1758782938232,324.84,0.00021233,30]
[387602326,1758782946249,-393.62,0.00019342,3]
[387602327,1758782946271,-1200.0,0.00019344,2]
[387602328,1758782946293,-300.0,0.00019344,2]
[387602329,1758782946314,-195.0,0.00019345,2]
[387602330,1758782946334,-300.0,0.00019345,2]
[387602331,1758782946355,-300.0,0.00019345,2]
[387602332,1758782946377,-1200.0,0.00019345,2]
[387602333,1758782946398,-300.0,0.00019345,2]
[387602334,1758782946420,-480.0,0.00019346,2]
[387602335,1758782946442,-480.0,0.00019346,2]
[387602336,1758782946462,-480.0,0.00019346,2]
[387602337,1758782946482,-480.0,0.00019346,2]
[387602338,1758782946504,-402.45615771,0.00019346,2]
[387602339,1758782946525,-480.0,0.00019346,2]
[387602340,1758782946547,-480.0,0.00019346,2]
[387602341,1758782946567,-241.95067781,0.00019346,2]
[387602342,1758782946588,-480.0,0.00019346,2]
[387602343,1758782946608,-397.17835169,0.00019346,2]
[387602344,1758782946629,-480.0,0.00019346,2]
[387602345,1758782946652,-480.0,0.00019346,2]
[387602346,1758782946673,-480.0,0.00019346,2]
[387602347,1758782946695,-480.0,0.00019346,2]
[387602348,1758782946714,-17021.55004803,0.00019346,2]
[387602349,1758782946734,-480.0,0.00019347,2]
[387602350,1758782946756,-480.0,0.00019347,2]
[387602351,1758782946775,-480.0,0.00019347,2]
[387602352,1758782946798,-480.0,0.00019347,2]
[387602353,1758782946818,-500.68579593,0.00019347,2]
[387602354,1758782946843,-480.0,0.00019347,2]
[387602355,1758782946864,-480.0,0.00019347,2]
[387602356,1758782946885,-480.0,0.00019347,2]
[387602357,1758782946909,-480.0,0.00019347,2]
[387602358,1758782946930,-480.0,0.00019347,2]
[387602359,1758782946951,-480.0,0.00019348,2]
[387602360,1758782946973,-480.0,0.00019348,2]
[387602361,1758782946995,-480.0,0.00019349,2]
[387602362,1758782947016,-480.0,0.00019349,2]
[387602363,1758782947037,-484.62491988,0.00019349,2]
[387602364,1758782947057,-480.0,0.00019349,2]
[387602365,1758782947077,-480.0,0.00019349,2]
[387602366,1758782947099,-480.0,0.00019349,2]
[387602367,1758782947120,-480.0,0.00019349,2]
[387602368,1758782947141,-480.0,0.00019349,2]
[387602369,1758782947161,-480.0,0.00019349,2]
[387602370,1758782947274,-720.62,0.00019349,2]
[387602371,1758782947303,-480.0,0.00019349,2]
[387602372,1758782947325,-480.0,0.00019349,2]
[387602373,1758782947348,-480.0,0.00019349,2]
[387602374,1758782947369,-366.07272362,0.00019349,2]
[387602375,1758782947392,-480.0,0.00019349,2]
[387602376,1758782947412,-482.46432713,0.0001935,2]
[387602377,1758782947432,-480.0,0.0001935,2]
[387602378,1758782947452,-480.0,0.0001935,2]
[387602379,1758782947473,-480.0,0.0001935,2]
[387602380,1758782947493,-484.50665114,0.0001935,2]
[387602381,1758782947513,-480.0,0.0001935,2]
[387602382,1758782947538,-480.0,0.0001935,2]
[387602383,1758782947558,-480.0,0.0001935,2]
[387602384,1758782947579,-294.07328885,0.0001935,2]
[387602385,1758782947601,-484.72171065,0.0001935,2]
[387602386,1758782947621,-392.39212785,0.0001935,2]
[387602387,1758782947645,-480.0,0.0001935,2]
[387602388,1758782947670,-480.0,0.0001935,2]
[387602389,1758782947692,-500.0,0.0001935,2]
[387602390,1758782947716,-520.0,0.00019351,3]
[387602391,1758782947738,-480.0,0.00019351,2]
[387602392,1758782947760,-480.0,0.00019351,2]
[387602393,1758782947784,-500.0,0.00019351,2]
[387602394,1758782947811,-500.0,0.00019351,2]
[387602395,1758782947835,-587.12113927,0.00019351,2]
[387602396,1758782947857,-285865.22034006,0.00019352,2]
[387602401,1758782966366,-480.0,0.00019346,2]
[387602403,1758782981363,-480.0,0.00019347,2]
[387602404,1758782988322,480.0,0.00019347,2]
[387602406,1758783000806,-480.0,0.00019346,2]
[387602407,1758783010685,483.84203618,0.00019345,2]
[387602409,1758783021706,-150.42966953,0.00019349,2]
[387602410,1758783021738,-480.0,0.00019349,2]
[387602411,1758783021768,-480.0,0.00019349,2]
[387602412,1758783028563,480.0,0.00019347,2]
[387602452,1758783031919,480.0,0.00019346,2]
[387602453,1758783031966,-2860.8719163,0.00019351,2]
[387602454,1758783031976,-272.07056657,0.00019351,2]
[387602455,1758783031985,-500.0,0.00019351,2]
[387602456,1758783031995,-230.33275888,0.00019351,2]
[387602457,1758783032004,-84134.77965994,0.00019352,2]
[387602458,1758783032014,-500.0,0.00019373,2]
[387602460,1758783032024,-500.0,0.00019373,2]
[387602462,1758783032033,-480.0,0.0001962,2]
[387602464,1758783032043,-480.0,0.0001962,2]
[387602466,1758783032053,-480.0,0.0001962,2]
[387602468,1758783032062,-480.0,0.0001962,2]
[387602470,1758783032071,-480.0,0.0001962,2]
[387602472,1758783032081,-480.0,0.0001962,2]
[387602473,1758783032091,-480.0,0.00019621,2]
[387602475,1758783032100,-480.0,0.00019621,2]
[387602477,1758783032110,-480.0,0.00019621,2]
[387602479,1758783032119,-480.0,0.00019621,2]
[387602481,1758783032129,-480.0,0.00019621,2]
[387602483,1758783032138,-480.0,0.00019621,2]
[387602485,1758783032148,-480.0,0.00019621,2]
[387602487,1758783032157,-480.0,0.00019621,2]
[387602489,1758783032166,-485.26217774,0.00019623,2]
[387602491,1758783032176,-480.0,0.00019623,2]
[387602493,1758783032185,-480.0,0.00019623,2]
[387602495,1758783032196,-480.0,0.00019623,2]
[387602497,1758783032206,-480.0,0.00019623,2]
[387602499,1758783032217,-480.0,0.00019623,2]
[387602501,1758783032227,-480.0,0.00019623,2]
[387602503,1758783032237,-720.62,0.00019623,2]
[387602505,1758783032247,-480.0,0.00019623,2]
[387602507,1758783032257,-480.0,0.00019623,2]
[387602509,1758783032266,-480.0,0.00019623,2]
[387602511,1758783032276,-480.0,0.00019623,2]
[387602513,1758783032285,-480.0,0.00019623,2]
[387602515,1758783032296,-480.0,0.00019894,2]
[387602517,1758783032308,-480.0,0.00019894,2]
[387602519,1758783032318,-480.0,0.00019894,2]
[387602521,1758783032327,-480.0,0.00019894,2]
[387602523,1758783032337,-583.10476794,0.00019895,2]
[387602525,1758783032347,-480.0,0.00019895,2]
[387602527,1758783032356,-613.89105678,0.00019895,2]
[387602529,1758783032366,-480.0,0.00019895,2]
[387602531,1758783032376,-480.0,0.00019895,2]
[387602533,1758783032385,-480.0,0.00019895,2]
[387602535,1758783032395,-489.34061898,0.00019897,2]
[387602537,1758783032404,-488.53271423,0.00019897,2]
[387602539,1758783032414,-480.0,0.00019897,2]
[387602541,1758783032423,-428.97,0.00019897,2]
[387602543,1758783032433,-480.0,0.00019897,2]
[387602545,1758783032443,-480.0,0.00019897,2]
[387602547,1758783032452,-720.62,0.00019897,2]
[387602550,1758783032462,-480.0,0.00019897,2]
[387602552,1758783032472,-480.0,0.00019897,2]
[387602554,1758783032482,-480.0,0.00019897,2]
[387602556,1758783032491,-480.0,0.00019897,2]
[387602558,1758783032501,-480.0,0.00019897,2]
[387602560,1758783032510,-330.10053463,0.000199,2]
[387602562,1758783032520,-1000.0,0.00019921,2]
[387602564,1758783032532,-1000.0,0.00019921,2]
[387602566,1758783032541,-204.11219832,0.00019973,2]
[387602568,1758783032551,-160.0,0.0002,3]
[387602570,1758783032562,-505.17,0.00020168,2]
[387602572,1758783032572,-480.0,0.00020168,2]
[387602574,1758783032582,-480.0,0.00020168,2]
[387602576,1758783032591,-480.0,0.00020168,2]
[387602578,1758783032602,-480.0,0.00020169,2]
[387602580,1758783032612,-480.0,0.00020169,2]
[387602582,1758783032622,-480.0,0.00020169,2]
[387602584,1758783032632,-480.0,0.00020169,2]
[387602596,1758783032737,-199.85000003,0.00020171,2]
[387602599,1758783032752,-480.0,0.00020171,2]
[387602601,1758783032762,-480.0,0.00020171,2]
[387602603,1758783032781,-720.62,0.00020171,2]
[387602604,1758783032801,-500.57761877,0.00020171,2]
[387602605,1758783032812,-480.0,0.00020171,2]
[387602606,1758783032822,-406.66,0.00020171,2]
[387602607,1758783032831,-480.0,0.00020171,2]
[387602608,1758783032841,-186.82,0.00020171,2]
[387602609,1758783032853,-502.07768601,0.00020418,2]
[387602610,1758783032863,-545.03033089,0.00020418,2]
[387602611,1758783032873,-500.0,0.00020418,2]
[387602612,1758783032882,-500.0,0.00020418,2]
[387602614,1758783032892,-500.0,0.00020418,2]
[387602616,1758783032902,-567.05158692,0.00020418,2]
[387602618,1758783032911,-500.0,0.00020418,2]
[387602621,1758783032922,-480.0,0.00020442,2]
[387602623,1758783032933,-480.0,0.00020442,2]
[387602625,1758783032943,-480.0,0.00020442,2]
[387602627,1758783032956,-480.0,0.00020443,2]
[387602629,1758783032967,-480.0,0.00020443,2]
[387602631,1758783032977,-480.0,0.00020443,2]
[387602633,1758783032987,-480.0,0.00020443,2]
[387602635,1758783032997,-480.0,0.00020445,2]
[387602637,1758783033006,-480.0,0.00020445,2]
[387602639,1758783033016,-720.62,0.00020445,2]
[387602641,1758783033025,-480.0,0.00020445,2]
[387602643,1758783033035,-480.0,0.00020445,2]
[387602645,1758783033045,-500.0,0.00020468,2]
[387602647,1758783033054,-480.0,0.00020716,2]
[387602649,1758783033064,-480.0,0.00020716,2]
[387602651,1758783033074,-480.0,0.00020716,2]
[387602653,1758783033084,-480.0,0.00020717,2]
[387602655,1758783033094,-480.0,0.00020717,2]
[387602657,1758783033104,-480.0,0.00020717,2]
[387602659,1758783033113,-480.0,0.00020717,2]
[387602661,1758783033124,-480.0,0.00020719,2]
[387602663,1758783033133,-480.0,0.00020719,2]
[387602665,1758783033143,-720.62,0.00020719,2]
[387602667,1758783033153,-480.0,0.00020719,2]
[387602669,1758783033163,-480.0,0.00020719,2]
[387602671,1758783033173,-150.0,0.0002086,2]
[387602673,1758783033183,-1000.0,0.00020966,2]
[387602675,1758783033193,-178.55621229,0.00020966,2]
[387602677,1758783033203,-1000.0,0.00020966,2]
[387602679,1758783033212,-1000.0,0.00020966,2]
[387602681,1758783033222,-330.10053443,0.00020972,2]
[387602683,1758783033232,-480.0,0.0002099,2]
[387602685,1758783033242,-480.0,0.0002099,2]
[387602687,1758783033253,-480.0,0.0002099,2]
[387602689,1758783033262,-480.0,0.00020991,2]
[387602691,1758783033272,-507.49916118,0.00020991,2]
[387602693,1758783033282,-530.55,0.00020991,2]
[387602695,1758783033292,-480.0,0.00020991,2]
[387602697,1758783033303,-480.0,0.00020993,2]
[387602699,1758783033313,-720.62,0.00020993,2]
[387602701,1758783033323,-480.0,0.00020993,2]
[387602703,1758783033333,-480.0,0.00020993,2]
[387602705,1758783033344,-500.0,0.00021179,2]
[387602707,1758783033353,-500.0,0.00021179,2]
[387602709,1758783033363,-480.0,0.00021264,2]
[387602711,1758783033374,-339.2,0.00021264,2]
[387602713,1758783033384,-480.0,0.00021265,2]
[387602715,1758783033395,-480.0,0.00021265,2]
[387602717,1758783033405,-543.83,0.00021267,2]
[387602719,1758783033415,-720.62,0.00021267,2]
[387602721,1758783033425,-480.0,0.00021267,2]
[387602723,1758783033435,-480.0,0.00021267,2]
[387602725,1758783033446,-521.83973664,0.00021514,2]
[387602727,1758783033456,-1500.0,0.00021514,2]
[387602729,1758783033465,-1500.0,0.00021514,2]
[387602730,1758783033475,-168.63354543,0.00021518,2]
[387602733,1758783033486,-480.0,0.00021538,2]
[387602735,1758783033496,-480.0,0.00021539,2]
[387602737,1758783033505,-480.0,0.00021539,2]
[387602739,1758783033516,-720.62,0.00021541,2]
[387602741,1758783033526,-480.0,0.00021541,2]
[387602743,1758783033536,-311.43916854,0.00021541,2]
[387602745,1758783033547,-1000.0,0.00021727,2]
[387602747,1758783033557,-1000.0,0.00021727,2]
[387602748,1758783033567,-480.0,0.00021812,2]
[387602749,1758783033577,-480.0,0.00021813,2]
[387602750,1758783033587,-480.0,0.00021813,2]
[387602751,1758783033597,-720.62,0.00021815,2]
[387602752,1758783033606,-480.0,0.00021815,2]
[387602753,1758783033617,-160.0,0.00021834,2]
[387602754,1758783033626,-160.0,0.00021834,2]
[387602755,1758783033636,-417.15472785,0.00021844,2]
[387602756,1758783033646,-160.0,0.00021844,2]
[387602757,1758783033656,-233.66602051,0.00021844,2]
[387602758,1758783033666,-160.0,0.000219,2]
[387602759,1758783033676,-513.44879029,0.00021917,2]
[387602760,1758783033686,-919.83,0.00022,2]
[387602761,1758783033697,-330.10053443,0.00022044,2]
[387602762,1758783033707,-1543.74098733,0.00022062,2]
[387602763,1758783033718,-1500.0,0.00022062,2]
[387602764,1758783033728,-480.0,0.00022086,2]
[387602765,1758783033738,-480.0,0.00022087,2]
[387602766,1758783033749,-480.0,0.00022087,2]
[387602767,1758783033759,-720.62,0.00022089,2]
[387602768,1758783033769,-480.0,0.00022089,2]
[387602769,1758783033780,-159.6538646,0.00022137,6]
[387602770,1758783033790,-501.9394804,0.00022275,2]
[387602771,1758783033800,-348.64461143,0.00022275,2]
[387602772,1758783033809,-480.0,0.0002236,2]
[387602773,1758783033819,-480.0,0.00022361,2]
[387602774,1758783033829,-480.0,0.00022361,2]
[387602775,1758783033838,-720.62,0.00022363,2]
[387602776,1758783033849,-480.0,0.00022363,2]
[387602777,1758783033863,-260.0,0.00022448,2]
[387602778,1758783033873,-480.0,0.00022634,2]
[387602779,1758783033883,-480.0,0.00022635,2]
[387602780,1758783033894,-720.62,0.00022637,2]
[387602781,1758783033904,-480.0,0.00022637,2]
[387602782,1758783033914,-165.89,0.000228,2]
[387602783,1758783033923,-480.0,0.00022908,2]
[387602784,1758783033934,-480.0,0.00022909,2]
[387602785,1758783033944,-720.62,0.00022911,2]
[387602786,1758783033954,-480.0,0.00022911,2]
[387602787,1758783033963,-520.0,0.00022996,2]
[387602788,1758783033973,-373.6213104,0.00023037,2]
[387602789,1758783033983,-330.10053443,0.00023116,2]
[387602790,1758783033993,-480.0,0.00023182,2]
[387602791,1758783034003,-480.0,0.00023183,2]
[387602792,1758783034012,-720.62,0.00023185,2]
[387602793,1758783034022,-550.05,0.00023185,2]
[387602794,1758783034032,-667.07,0.00023287,2]
[387602795,1758783034043,-373.6213104,0.00023315,2]
[387602796,1758783034052,-480.0,0.00023456,2]
[387602797,1758783034062,-480.0,0.00023457,2]
[387602798,1758783034072,-720.62,0.00023459,2]
[387602799,1758783034082,-373.6213104,0.00023592,7]
[387602800,1758783034093,-373.6213104,0.00023592,7]
[387602801,1758783034103,-480.0,0.0002373,2]
[387602802,1758783034113,-260.44,0.00023731,2]
[387602803,1758783034123,-720.62,0.00023733,2]
[387602804,1758783034133,-373.6213104,0.00023869,7]
[387602805,1758783034144,-1331.37933678,0.00023904,2]
[387602806,1758783034154,-100000.0,0.0002399,2]
[387602807,1758783034163,-480.0,0.00024004,2]
[387602808,1758783034173,-720.62,0.00024007,2]
[387602809,1758783034183,-522.048,0.00024055,5]
[387602810,1758783034193,-373.6213104,0.00024146,14]
[387602811,1758783034205,-373.6213104,0.00024146,14]
[387602812,1758783034215,-330.10053443,0.00024187,2]
[387602813,1758783034225,-505.52315147,0.0002426,2]
[387602814,1758783034235,-467.78226728,0.00024278,2]
[387602815,1758783034245,-720.62,0.00024281,2]
[387602816,1758783034254,-720.62,0.00024555,2]
[387602817,1758783034264,-490.36420006,0.00024692,2]
[387602818,1758783034274,-248.84,0.00024701,2]
[387602819,1758783034284,-720.62,0.00024829,2]
[387602820,1758783034295,-5000.0,0.00024862,2]
[387602821,1758783034304,-504.3947377,0.00024873,2]
[387602822,1758783034315,-502.01785286,0.00024873,2]
[387602823,1758783034324,-500.0,0.00024873,2]
[387602824,1758783034334,-500.0,0.00024873,2]
[387602825,1758783034344,-500.0,0.00024873,2]
[387602826,1758783034354,-504.67218833,0.00024873,2]
[387602827,1758783034364,-500.0,0.00024873,2]
[387602828,1758783034374,-500.0,0.00024873,2]
[387602829,1758783034385,-501.04154619,0.00024873,2]
[387602830,1758783034395,-500.0,0.00024873,2]
[387602831,1758783034404,-500.0,0.00024873,2]
[387602832,1758783034414,-190226.10290939,0.000249,2]
[387602833,1758783034485,-395.73407509,0.00022635,2]
[387602834,1758783034496,-84.26592491,0.00022635,2]
[387602835,1758783034506,-1979.94395903,0.000249,2]
[387602863,1758783037845,-480.0,0.0001962,2]
[387602865,1758783037856,-351.09228641,0.00019894,2]
[387602867,1758783037870,-128.90771359,0.00019894,2]
[387602869,1758783037880,-480.0,0.00020168,2]
[387602870,1758783037889,-480.0,0.00020442,2]
[387602871,1758783037898,-32.21753072,0.00022909,2]
[387602872,1758783037953,-447.78246928,0.00022909,2]
[387602874,1758783037963,-480.0,0.00023183,2]
[387602875,1758783037973,-480.0,0.00023457,2]
[387602876,1758783037983,-480.0,0.00023731,2]
[387602877,1758783037993,-480.0,0.00024005,2]
[387602878,1758783038003,-480.0,0.00024279,2]
[387602879,1758783038012,-334.90036655,0.00024553,2]
[387602880,1758783038022,-307960.19307258,0.000249,2]
[387602881,1758783038032,-1137.53329568,0.00024979,2]
[387602882,1758783038041,-168.0,0.00025079,2]
[387602883,1758783038051,-720.62,0.00025103,2]
[387602884,1758783038060,-168.0,0.00025173,2]
[387602885,1758783038070,-667.07,0.00025205,4]
[387602886,1758783038079,-330.10053443,0.00025259,3]
[387602887,1758783038089,-179.62279214,0.00025334,2]
[387602888,1758783038098,-720.62,0.00025377,2]
[387602889,1758783038108,-685.4969793,0.0002548,2]
[387602890,1758783038118,-2741.98791722,0.0002548,2]
[387602891,1758783038127,-166.28049624,0.00025519,2]
[387602892,1758783038136,-1000.0,0.00025519,2]
[387602893,1758783038146,-1000.0,0.00025519,2]
[387602894,1758783038155,-384.77737366,0.00025519,2]
[387602895,1758783038164,-1044.82418463,0.00025519,2]
[387602896,1758783038174,-200.4500569,0.00025519,2]
[387602897,1758783038184,-350.0,0.00025519,2]
[387602898,1758783038194,-350.0,0.00025519,2]
[387602899,1758783038203,-350.0,0.00025519,2]
[387602900,1758783038213,-460.33648398,0.00025519,2]
[387602901,1758783038222,-720.77,0.00025651,2]
[387602902,1758783038232,-919.83,0.000257,2]
[387602903,1758783038242,-1007.0,0.000258,30]
[387602904,1758783038252,-1331.37933678,0.00025903,2]
[387602905,1758783038262,-168.0,0.00025926,2]
[387602906,1758783038271,-168.0,0.00026225,2]
[387602907,1758783038281,-330.10053443,0.00026331,5]
[387602908,1758783038290,-168.0,0.00026448,2]
[387602909,1758783038300,-331.78,0.00026601,2]
[387602910,1758783038310,-978.0,0.00026888,2]
[387602911,1758783038319,-2160.0,0.00026888,2]
[387602912,1758783038329,-635.0,0.00026888,2]
[387602913,1758783038339,-667.07,0.00027123,6]
[387602914,1758783038348,-150.0,0.00027397,5]
[387602915,1758783038358,-330.10053443,0.00027403,7]
[387602916,1758783038367,-1331.37933678,0.00027902,2]
[387602917,1758783038377,-250.0,0.00027945,5]
[387602918,1758783038386,-199.0,0.00028219,14]
[387602919,1758783038396,-330.10053443,0.00028475,9]
[387602920,1758783038406,-350.0,0.00028493,5]
[387602921,1758783038416,-414.73,0.00028501,2]
[387602922,1758783038425,-199.0,0.00028904,15]
[387602923,1758783038434,-2368.47532762,0.00029041,5]
[387602924,1758783038443,-667.07,0.00029041,8]
[387602925,1758783038453,-164.48432415,0.00029041,5]
[387602926,1758783038462,-169.86086461,0.00029189,22]
[387602927,1758783038472,-173.32683059,0.00029316,2]
[387602928,1758783038481,-500.0,0.00029316,2]
[387602929,1758783038490,-151.0,0.00029316,2]
[387602930,1758783038499,-199.3206496,0.00029316,2]
[387602931,1758783038509,-151.0,0.00029316,2]
[387602932,1758783038518,-151.89653285,0.00029316,2]
[387602933,1758783038527,-293.70166379,0.00029316,2]
[387602934,1758783038537,-106039.70525528,0.00029344,20]
[387602935,1758783038546,-848.55614791,0.00029344,30]
[387602936,1758783038555,-5478.58353682,0.00029344,7]
[387602937,1758783038565,-344.223555,0.00029344,10]
[387602938,1758783038575,-154.28089581,0.00029363,7]
[387602939,1758783038584,-501.7140521,0.00029373,5]
[387602940,1758783038593,-238.57457338,0.00029373,5]
[387602941,1758783038603,-425.3072389,0.00029373,5]
[387602942,1758783038613,-177.66392099,0.00029425,30]
[387602943,1758783038623,-919.83,0.000295,2]
[387602944,1758783038632,-1576.521787,0.000295,2]
[387602945,1758783038642,-330.10053443,0.00029547,12]
[387602946,1758783038651,-199.0,0.00029589,16]
[387602947,1758783038661,-526.44835605,0.0002959,2]
[387602948,1758783038671,-247.43859374,0.0002959,2]
[387602949,1758783038680,-151.0,0.0002959,2]
[387602950,1758783038778,-177.66392099,0.00029808,30]
[387602951,1758783038788,-209.83671391,0.00029864,2]
[387602952,1758783038797,-978.0,0.00029888,2]
[387602953,1758783038806,-2160.0,0.00029888,2]
[387602954,1758783038816,-635.0,0.00029888,2]
[387602955,1758783038825,-1331.37933678,0.00029901,2]
[387602956,1758783038834,-504.46953015,0.00029973,5]
[387602957,1758783038843,-500.0,0.00029973,5]
[387602958,1758783038854,-287.553,0.0003,2]
[387602959,1758783038865,-73191.90976936,0.0003,30]
[387602960,1758783038875,-165.46,0.0003,5]
[387602961,1758783038884,-523.92591956,0.0003,2]
[387602962,1758783038895,-158.78355101,0.0003,60]
[387602963,1758783038904,-1500.0,0.0003,2]
[387602964,1758783038914,-284.66318794,0.0003013,2]
[387602965,1758783038924,-8934.75583111,0.0003016,14]
[387602966,1758783038935,-177.66392099,0.00030192,30]
[387602967,1758783038945,-960.58223937,0.000302,2]
[387602968,1758783038954,-199.0,0.00030273,17]
[387602969,1758783038964,-184.53333109,0.0003034,2]
[387602970,1758783038973,-497.68,0.00030401,2]
[387602971,1758783038983,-177.66392099,0.00030575,30]
[387602972,1758783038992,-330.10053443,0.00030619,14]
[387602973,1758783039002,-287.553,0.00030622,2]
[387602974,1758783039012,-199.0,0.00030958,18]
[387602975,1758783039021,-667.07,0.00030958,10]
[387602976,1758783039030,-302.92744378,0.0003099,2]
[387602977,1758783039040,-30000.0,0.0003112,2]
[387602978,1758783039049,-151.94898114,0.0003112,2]
[387602979,1758783039058,-151.0,0.0003112,7]
[387602980,1758783039068,-151.0,0.0003112,7]
[387602981,1758783039077,-151.0,0.0003112,7]
[387602982,1758783039086,-151.0,0.0003112,7]
[387602983,1758783039097,-151.0,0.0003112,7]
[387602984,1758783039107,-151.0,0.0003112,7]
[387602985,1758783039116,-151.0,0.0003112,7]
[387602986,1758783039126,-153.072088,0.0003112,7]
[387602987,1758783039135,-153.072088,0.0003112,7]
[387602988,1758783039144,-153.072088,0.0003112,7]
[387602989,1758783039154,-153.072088,0.0003112,7]
[387602990,1758783039163,-500.0,0.0003115,5]
[387602991,1758783039173,-406.79269329,0.0003115,5]
[387602992,1758783039182,-500.0,0.0003115,5]
[387602993,1758783039191,-500.98143617,0.0003115,5]
[387602994,1758783039201,-418.60072527,0.0003115,5]
[387602995,1758783039211,-5000.0,0.00031362,4]
[387602996,1758783039221,-199.0,0.00031643,19]
[387602997,1758783039230,-150.0,0.00031684,30]
[387602998,1758783039240,-330.10053443,0.0003169,16]
[387602999,1758783039249,-504.83976007,0.00031698,5]
[387603000,1758783039259,-22523.60077838,0.000319,2]
[387603001,1758783039269,-151.0,0.000319,7]
[387603002,1758783039278,-1331.37933678,0.000319,2]
[387603003,1758783039287,-151.0,0.000319,7]
[387603004,1758783039296,-151.0,0.000319,7]
[387603005,1758783039306,-151.0,0.000319,7]